bitfinex/quotes_BTCUSD_20260221
["timestamp","ask_amount","ask_price","bid_price","bid_amount"]
[1771672538205,0.00016,68290.0,68278.0,0.02259345]
[1771672538408,0.07322054,68287.0,68279.0,0.07322885]
[1771672538704,0.07322054,68287.0,68278.0,0.09582308]
[1771672539729,0.07322169,68286.0,68278.0,0.09582308]
[1771672540853,0.07337779,68290.0,68278.0,0.09582308]
[1771672541055,0.08687949,68289.0,68280.0,0.07322777]
[1771672541212,0.08687991,68288.0,68280.0,0.07322777]
[1771672541417,0.08687991,68288.0,68279.0,0.07322874]
[1771672541418,0.07322053,68287.0,68279.0,0.07322874]
[1771672542849,0.07322145,68286.0,68278.0,0.09582312]
[1771672544630,0.07321823,68289.0,68278.0,0.02259345]
[1771672544815,0.07322442,68285.0,68278.0,0.02259345]
[1771672545264,0.07322366,68284.0,68278.0,0.02259345]
[1771672545984,0.07322366,68284.0,68276.0,0.07323209]
[1771672546318,0.07322366,68284.0,68276.0,0.07308738]
[1771672546519,0.07322366,68284.0,68276.0,0.07294267]
[1771672546963,0.0732229,68285.0,68274.0,0.02392241]
[1771672547179,0.07322107,68287.0,68274.0,0.02392241]
[1771672547180,0.07322169,68286.0,68274.0,0.02392241]
[1771672547415,0.01368765,68285.0,68278.0,0.07322904]
[1771672547617,0.01368765,68284.0,68278.0,0.05961791]
[1771672547755,0.07322169,68286.0,68278.0,0.05983791]
[1771672547962,0.01368765,68285.0,68278.0,0.05983791]
[1771672548155,0.01368765,68284.0,68278.0,0.05983791]
[1771672548396,0.07322257,68285.0,68278.0,0.05983791]
[1771672548574,0.01369249,68284.0,68278.0,0.00022]
[1771672548778,0.07322257,68285.0,68278.0,0.00022]
[1771672548960,0.01369249,68284.0,68278.0,0.00022]
[1771672549157,0.01369323,68283.0,68278.0,0.00022]
[1771672549497,0.07322257,68285.0,68278.0,0.00022]
[1771672549698,0.01369809,68284.0,68278.0,0.00022]
[1771672549908,0.01369809,68283.0,68278.0,0.00022]
[1771672550101,0.07322257,68285.0,68278.0,0.00022]
[1771672550319,0.01370479,68284.0,68278.0,0.00022]
[1771672550487,0.01370479,68283.0,68278.0,0.00022]
[1771672550695,0.01370479,68282.0,68278.0,0.00022]
[1771672550896,0.07322257,68285.0,68278.0,0.00022]
[1771672551198,0.01370479,68284.0,68278.0,0.00022]
[1771672551391,0.01370479,68283.0,68278.0,0.0734499]
[1771672551617,0.07322255,68285.0,68278.0,0.0734499]
[1771672551816,0.01370454,68284.0,68278.0,0.0734499]
[1771672551990,0.01370454,68283.0,68278.0,0.0734499]
[1771672552186,0.07322255,68285.0,68278.0,0.0734499]
[1771672552395,0.01370534,68284.0,68278.0,0.0734499]
[1771672552741,0.01370534,68283.0,68278.0,0.0734499]
[1771672552893,0.07322345,68286.0,68278.0,0.0734499]
[1771672553098,0.01370535,68285.0,68278.0,0.0734499]
[1771672553318,0.01370535,68284.0,68278.0,0.0734499]
[1771672553515,0.07322345,68286.0,68278.0,0.0734499]
[1771672553688,0.01370674,68285.0,68278.0,0.0734499]
[1771672553894,0.01370674,68284.0,68278.0,0.0734499]
[1771672554129,0.07322345,68286.0,68278.0,0.0734499]
[1771672554329,0.01370801,68285.0,68278.0,0.0734499]
[1771672554528,0.01370801,68284.0,68278.0,0.0734499]
[1771672554710,0.01370801,68283.0,68278.0,0.0734499]
[1771672554925,0.00016,68290.0,68283.0,0.07322398]
[1771672555107,0.01370819,68289.0,68283.0,0.02392241]
[1771672555306,0.00016,68290.0,68283.0,0.02392241]
[1771672555934,0.19653433,68296.0,68289.0,0.07321823]
[1771672556135,0.07321196,68295.0,68287.0,0.07321966]
[1771672556303,0.07321196,68295.0,68287.0,0.07360924]
[1771672557045,0.07321222,68295.0,68287.0,0.07360924]
[1771672557431,0.0732129,68294.0,68287.0,0.00038958]
[1771672558143,0.07321298,68294.0,68287.0,0.00038958]
[1771672558587,0.07321182,68295.0,68287.0,0.07360953]
[1771672559476,0.07321316,68294.0,68287.0,0.00038958]
[1771672559826,0.07321083,68296.0,68287.0,0.07360993]
[1771672560222,0.07321203,68295.0,68287.0,0.07346523]
[1771672560494,0.07321367,68294.0,68287.0,0.00024488]
[1771672560708,0.07321482,68293.0,68284.0,0.07322283]
[1771672560917,0.07360412,68293.0,68284.0,0.07322283]
[1771672561125,0.07360412,68293.0,68285.0,0.07322212]
[1771672561557,0.07321802,68290.0,68281.0,0.0732267]
[1771672561773,0.07321886,68289.0,68280.0,0.07338744]
[1771672561985,0.07321918,68289.0,68280.0,0.00016]
[1771672562178,0.07321949,68288.0,68280.0,0.07338778]
[1771672562385,0.07321848,68289.0,68280.0,0.07338778]
[1771672563293,0.04346941,68288.0,68280.0,0.00016]
[1771672563508,0.07322171,68286.0,68280.0,0.00016]
[1771672564887,0.07321594,68292.0,68281.0,0.02392241]
[1771672565089,0.07321624,68291.0,68282.0,0.09714714]
[1771672565290,0.07321624,68291.0,68283.0,0.07322456]
[1771672566902,0.07321624,68291.0,68282.0,0.09714789]
[1771672566903,0.07321718,68290.0,68282.0,0.09714789]
[1771672567362,0.01373433,68289.0,68282.0,0.09714789]
[1771672567550,0.01373433,68288.0,68282.0,0.09714789]
[1771672567858,0.01373433,68287.0,68282.0,0.09714789]
[1771672568172,0.07321718,68290.0,68282.0,0.07322548]
[1771672568493,0.01373441,68289.0,68282.0,0.07322548]
[1771672568629,0.01373441,68288.0,68282.0,0.07322548]
[1771672568829,0.07321826,68289.0,68282.0,0.07322548]
[1771672569015,0.01373441,68288.0,68281.0,0.09649498]
[1771672569216,0.01879404,68286.0,68274.0,0.07323359]
[1771672569414,0.00016,68290.0,68275.0,0.07323318]
[1771672569415,0.01879404,68283.0,68275.0,0.07323318]
[1771672570651,0.09201898,68283.0,68275.0,0.07323318]
[1771672570853,0.09201898,68283.0,68275.0,0.06334706]
[1771672571155,0.09201898,68283.0,68276.0,0.07323214]
[1771672571971,0.02436755,68284.0,68273.0,0.00022]
[1771672572165,0.0732207,68287.0,68273.0,0.02387499]
[1771672572342,0.0137345,68286.0,68279.0,0.07322816]
[1771672572544,0.07321884,68289.0,68279.0,0.07322816]
[1771672572760,0.0137345,68288.0,68279.0,0.07322816]
[1771672573106,0.0137345,68287.0,68279.0,0.07322816]
[1771672573299,0.0137345,68286.0,68279.0,0.07322816]
[1771672573591,0.07322044,68287.0,68279.0,0.07322816]
[1771672573796,0.01373441,68286.0,68279.0,0.07322816]
[1771672573972,0.07322044,68287.0,68279.0,0.07322816]
[1771672574178,0.01373441,68286.0,68279.0,0.07322816]
[1771672574475,0.07322044,68287.0,68279.0,0.07322816]
[1771672574815,0.0002,68291.0,68279.0,0.00022]
[1771672574950,0.07321844,68289.0,68282.0,0.02365499]
[1771672575762,0.07321844,68289.0,68281.0,0.07322599]
[1771672575763,0.07321823,68289.0,68281.0,0.07322599]
[1771672575981,0.00016,68290.0,68281.0,0.02365499]
[1771672576187,0.07337822,68290.0,68282.0,0.0732253]
[1771672576387,0.00016,68290.0,68281.0,0.02365499]
[1771672576749,0.07321922,68289.0,68281.0,0.02365499]
[1771672577127,0.07322006,68288.0,68281.0,0.02365499]
[1771672577562,0.07322128,68287.0,68281.0,0.02365499]
[1771672577720,0.07322145,68286.0,68279.0,0.00022]
[1771672578062,0.07322145,68286.0,68279.0,0.0734489]
[1771672578262,0.07322064,68287.0,68279.0,0.0734489]
[1771672579787,0.01879404,68286.0,68279.0,0.0734489]
[1771672579964,0.01879404,68286.0,68279.0,0.07309291]
[1771672579965,0.09201552,68286.0,68279.0,0.07309291]
[1771672580478,0.09201552,68286.0,68278.0,0.07322972]
[1771672581822,0.09201552,68286.0,68281.0,0.00022]
[1771672582722,0.01879404,68285.0,68279.0,0.02231405]
[1771672585092,0.01895404,68290.0,68275.0,0.07323324]
[1771672585392,0.00016,68290.0,68283.0,0.0732239]
[1771672585934,0.00016,68290.0,68284.0,0.07322347]
[1771672586143,0.07337716,68290.0,68283.0,0.09687926]
[1771672586359,0.07337716,68290.0,68283.0,0.02365499]
[1771672586562,0.07321828,68289.0,68282.0,0.0732251]
[1771672586837,0.07337716,68290.0,68282.0,0.0732251]
[1771672587650,0.00016,68290.0,68279.0,0.02365499]
[1771672587862,0.07322174,68286.0,68276.0,0.07323119]
[1771672588078,0.07322174,68286.0,68277.0,0.0732311]
[1771672588735,0.07322174,68286.0,68278.0,0.00022]
[1771672588960,0.0732227,68285.0,68278.0,0.00022]
[1771672589187,0.0732227,68285.0,68278.0,0.0734499]
[1771672589335,0.0732227,68285.0,68278.0,0.07330519]
[1771672593067,0.07342181,68286.0,68278.0,0.07330519]
[1771672595358,0.07342181,68286.0,68278.0,0.07316048]
[1771672595643,0.07342181,68286.0,68278.0,0.07301577]
[1771672599974,0.07342181,68286.0,68279.0,0.07322889]
[1771672600162,0.0002,68286.0,68280.0,0.07322701]
[1771672600663,0.07322377,68284.0,68275.0,0.07323233]
[1771672601466,0.07322377,68284.0,68278.0,0.00022]
[1771672602433,0.07322467,68283.0,68278.0,0.00022]
[1771672604087,0.07322467,68283.0,68278.0,7.532e-05]
[1771672606338,0.07322393,68284.0,68278.0,7.532e-05]
[1771672607051,0.0002,68286.0,68278.0,0.07330459]
[1771672607203,0.0002,68286.0,68279.0,0.02308178]
[1771672607607,0.0002,68291.0,68278.0,0.09266085]
[1771672607608,0.0002,68291.0,68280.0,0.02308178]
[1771672607814,0.07321904,68289.0,68281.0,0.07322578]
[1771672608019,0.07321904,68289.0,68281.0,0.07308112]
[1771672608221,0.07321904,68289.0,68281.0,0.07293646]
[1771672609677,0.07321941,68288.0,68280.0,0.07338788]
[1771672609872,0.07321839,68289.0,68280.0,0.07338788]
[1771672610122,0.07321839,68289.0,68281.0,0.07322681]
[1771672610489,0.07321823,68289.0,68281.0,0.07322681]
[1771672613731,0.07321944,68288.0,68281.0,0.07322681]
[1771672616538,0.07321944,68288.0,68281.0,0.07308214]
[1771672618004,0.0002,68289.0,68280.0,0.00016]
[1771672618212,0.07322452,68284.0,68276.0,0.07323199]
[1771672618410,0.02320622,68287.0,68276.0,0.07323199]
[1771672618629,0.07322479,68283.0,68276.0,0.07323199]
[1771672620125,0.07322479,68283.0,68276.0,0.07345199]
[1771672620321,0.07322479,68283.0,68276.0,0.00022]
[1771672620770,0.07322479,68283.0,68275.0,0.07323296]
[1771672620980,0.07322479,68283.0,68274.0,0.07345221]
[1771672620981,0.07342168,68286.0,68278.0,0.07322964]
[1771672621357,0.07322258,68285.0,68278.0,0.07322964]
[1771672621562,0.07322258,68285.0,68277.0,0.07323072]
[1771672622085,0.07322258,68285.0,68276.0,0.07323137]
[1771672622236,0.07322258,68285.0,68277.0,0.07323075]
[1771672623961,0.07322258,68285.0,68278.0,0.07322983]
[1771672625077,0.07322258,68285.0,68277.0,0.07323101]
[1771672627120,0.07322258,68285.0,68277.0,0.07345101]
[1771672627328,0.07322371,68284.0,68277.0,0.07345101]
[1771672627850,0.07322258,68285.0,68277.0,0.07345101]
[1771672629751,0.0002,68286.0,68278.0,0.073229]
[1771672629962,0.03883628,68288.0,68278.0,0.02282157]
[1771672630654,0.03883628,68288.0,68280.0,0.07322759]
[1771672631664,0.07322006,68288.0,68280.0,0.07322759]
[1771672632721,0.07322006,68288.0,68281.0,0.07308201]
[1771672632936,0.07341863,68289.0,68281.0,0.07308201]
[1771672633140,0.07341863,68289.0,68281.0,0.07293737]
[1771672633466,0.07341863,68289.0,68282.0,0.02267694]
[1771672633467,0.0002,68289.0,68282.0,0.02267694]
[1771672634004,0.0002,68289.0,68284.0,0.07322288]
[1771672634215,0.0002,68289.0,68284.0,0.02282157]
[1771672634417,0.0002,68289.0,68283.0,0.07322442]
[1771672634798,0.0002,68289.0,68282.0,0.07322538]
[1771672635769,0.0002,68289.0,68281.0,0.07322644]
[1771672635972,0.0002,68289.0,68282.0,0.07322471]
[1771672636794,0.0002,68291.0,68276.0,0.00022]
[1771672636996,0.0001824,68302.0,68291.0,0.07321608]
[1771672637231,0.07320647,68300.0,68292.0,0.09589192]
[1771672638093,0.07320647,68300.0,68292.0,0.02267691]
[1771672640178,0.07320647,68300.0,68292.0,0.02263248]
[1771672640893,0.07320762,68299.0,68290.0,0.07337503]
[1771672641083,0.07320877,68298.0,68290.0,0.07337696]
[1771672641478,0.07320989,68297.0,68290.0,0.00016]
[1771672641805,0.07321818,68290.0,68282.0,0.07322563]
[1771672641999,0.07321818,68290.0,68282.0,0.07361493]
[1771672642160,0.23813294,68292.0,68282.0,0.07361493]
[1771672642363,0.07321608,68291.0,68282.0,0.07361493]
[1771672642572,0.07321608,68291.0,68283.0,0.07322446]
[1771672642959,0.07321608,68291.0,68283.0,0.07322463]
[1771672644610,0.07344768,68291.0,68283.0,0.07322463]
[1771672645109,0.07321735,68290.0,68282.0,0.0003893]
[1771672645514,0.07321836,68289.0,68282.0,0.0003893]
[1771672645715,0.07321735,68290.0,68282.0,0.07361498]
[1771672646289,0.07344794,68291.0,68283.0,0.07322387]
[1771672646829,0.0002316,68291.0,68284.0,0.07322343]
[1771672646974,0.0002316,68291.0,68284.0,0.0732228]
[1771672648623,0.073448,68291.0,68283.0,0.07322256]
[1771672649825,0.0002316,68291.0,68284.0,0.07322339]
[1771672650850,0.0002316,68291.0,68283.0,0.0732226]
[1771672650999,0.0002316,68291.0,68283.0,0.09604417]
[1771672651399,0.0002316,68291.0,68285.0,0.07322165]
[1771672651602,0.0002316,68291.0,68285.0,0.07307702]
[1771672651999,0.0002316,68291.0,68283.0,0.02282157]
[1771672652000,0.000126,68298.0,68283.0,0.02282157]
[1771672652309,0.000126,68298.0,68290.0,0.02282157]
[1771672653306,0.07340993,68297.0,68290.0,0.02282157]
[1771672656157,0.07340993,68297.0,68290.0,0.02267694]
[1771672656363,0.07340993,68297.0,68290.0,0.02289694]
[1771672656975,0.07340993,68297.0,68290.0,0.09611381]
[1771672658702,0.07340993,68297.0,68290.0,0.02289694]
[1771672658851,0.0002,68297.0,68290.0,0.09611375]
[1771672659861,0.00036,68300.0,68290.0,0.09611395]
[1771672660160,0.07320955,68298.0,68290.0,0.00017556]
[1771672660573,0.07320754,68299.0,68290.0,0.07339267]
[1771672660799,0.07320858,68298.0,68290.0,0.07339267]
[1771672661512,0.07320858,68298.0,68290.0,0.07319066]
[1771672662157,0.07320974,68297.0,68290.0,0.07319066]
[1771672662512,0.07320974,68297.0,68288.0,0.0732173]
[1771672662915,0.07320896,68298.0,68290.0,0.07321691]
[1771672663465,0.07320896,68298.0,68290.0,0.07343691]
[1771672663659,0.07340896,68298.0,68290.0,0.07343691]
[1771672664109,0.0732102,68297.0,68290.0,0.00022]
[1771672664322,0.11708733,68314.0,68289.0,0.02457249]
[1771672664467,0.07318621,68319.0,68310.0,0.07319572]
[1771672664699,0.02305833,68320.0,68310.0,0.07305111]
[1771672664911,0.00016,68320.0,68306.0,0.02457249]
[1771672665127,0.00016,68320.0,68304.0,0.07320201]
[1771672665128,0.07318899,68317.0,68304.0,0.07320201]
[1771672665360,0.02305833,68320.0,68304.0,0.07320201]
[1771672665361,0.07318608,68319.0,68305.0,0.02457249]
[1771672665567,0.07318855,68317.0,68305.0,0.02457249]
[1771672665788,0.07319036,68315.0,68305.0,0.02482159]
[1771672665998,0.0731893,68316.0,68305.0,0.0980216]
[1771672666216,0.02461921,68318.0,68306.0,0.07070001]
[1771672666417,0.07326655,68319.0,68307.0,0.07319894]
[1771672666624,0.07326655,68319.0,68308.0,0.02457249]
[1771672666827,0.07326655,68319.0,68309.0,0.07319661]
[1771672667137,0.07318744,68318.0,68307.0,0.07344804]
[1771672667346,0.07318744,68318.0,68307.0,0.0002491]
[1771672668221,0.07318744,68318.0,68308.0,0.07319786]
[1771672668625,0.07318744,68318.0,68308.0,0.06332801]
[1771672668758,0.07318744,68318.0,68308.0,0.06357711]
[1771672669930,0.07326589,68319.0,68309.0,0.07319646]
[1771672670133,0.07318737,68318.0,68309.0,0.07319646]
[1771672670316,0.07318737,68318.0,68308.0,0.07344693]
[1771672670522,0.07338737,68318.0,68308.0,0.07344693]
[1771672670924,0.09800658,68318.0,68308.0,0.07344693]
[1771672673201,0.09800658,68318.0,68309.0,0.07319675]
[1771672673405,0.09800658,68318.0,68308.0,0.0002491]
[1771672674000,0.09800658,68318.0,68309.0,0.07319679]
[1771672674770,0.07318826,68317.0,68309.0,0.07319679]
[1771672677173,0.07319216,68314.0,68308.0,0.0002491]
[1771672677604,0.07319122,68315.0,68308.0,0.0002491]
[1771672678352,0.02461921,68316.0,68308.0,0.0002491]
[1771672678595,0.0731912,68315.0,68308.0,0.0002491]
[1771672678829,0.07319233,68314.0,68308.0,0.0002491]
[1771672679858,0.0731912,68315.0,68308.0,0.0002491]
[1771672680514,0.0731919,68314.0,68308.0,0.0002491]
[1771672683206,0.07338828,68317.0,68309.0,0.07319679]
[1771672690007,0.0002,68317.0,68310.0,0.07319529]
[1771672690207,0.0733884,68317.0,68309.0,0.0731965]
[1771672690350,0.0002,68317.0,68308.0,0.02529463]
[1771672690546,0.0002,68317.0,68312.0,0.09801905]
[1771672690748,0.00016,68330.0,68317.0,0.0462599]
[1771672690949,0.29270433,68329.0,68316.0,0.02482553]
[1771672691272,0.07317997,68325.0,68317.0,0.06781346]
[1771672691472,0.0002,68318.0,68317.0,0.06781346]
[1771672691672,0.0002,68318.0,68317.0,0.02482553]
[1771672692952,0.0002,68318.0,68316.0,7.98e-05]
[1771672695051,0.0002,68318.0,68310.0,0.00016]
[1771672695414,0.07319011,68316.0,68308.0,0.07366694]
[1771672695734,0.07319095,68315.0,68308.0,0.0004691]
[1771672696769,0.0731903,68316.0,68308.0,0.0736666]
[1771672698196,0.0731904,68315.0,68308.0,0.0736666]
[1771672698731,0.0731904,68315.0,68308.0,0.0004691]
[1771672698894,0.0731916,68314.0,68308.0,0.0004691]
[1771672699795,0.07319065,68315.0,68308.0,0.0004691]
[1771672701137,0.07319065,68315.0,68308.0,0.07366691]
[1771672702835,0.07350463,68318.0,68308.0,0.0004691]
[1771672703037,0.07350463,68318.0,68309.0,0.07319679]
[1771672703500,0.07350463,68318.0,68310.0,0.07319558]
[1771672704199,0.0002,68317.0,68310.0,0.07319558]
[1771672705299,0.07338837,68317.0,68310.0,0.07319558]
[1771672705598,0.00016,68320.0,68315.0,0.07318941]
[1771672705798,0.00016,68320.0,68316.0,0.02482553]
[1771672706096,0.07317977,68325.0,68316.0,0.09813077]
[1771672706298,0.07317928,68326.0,68316.0,0.09813077]
[1771672706496,0.02485376,68329.0,68316.0,0.02494226]
[1771672706696,0.07318185,68323.0,68316.0,0.02494226]
[1771672706882,0.07318097,68324.0,68316.0,0.09813142]
[1771672708566,0.07318182,68323.0,68316.0,0.02128733]
[1771672708806,0.07318368,68322.0,68316.0,0.00011673]
[1771672709149,0.07318622,68319.0,68310.0,0.02498553]
[1771672709334,0.07330357,68319.0,68311.0,0.07319451]
[1771672710171,0.07318717,68318.0,68310.0,0.07335545]
[1771672710608,0.07330357,68319.0,68310.0,0.07335545]
[1771672710812,0.07330357,68319.0,68311.0,0.07319438]
[1771672711315,0.07318756,68318.0,68310.0,0.07335564]
[1771672711487,0.07318908,68317.0,68310.0,0.00016]
[1771672711687,0.07318949,68316.0,68308.0,0.07366671]
[1771672712092,0.07318845,68317.0,68309.0,0.07319658]
[1771672712698,0.07318845,68317.0,68310.0,0.0731957]
[1771672712900,0.07318845,68317.0,68308.0,0.0004691]
[1771672712901,0.09804124,68318.0,68309.0,0.07319591]
[1771672713072,0.00031673,68319.0,68301.0,0.00022]
[1771672713073,0.02485376,68316.0,68301.0,0.00022]
[1771672713294,0.02485376,68310.0,68301.0,0.00022]
[1771672714026,0.07319567,68311.0,68301.0,0.07342454]
[1771672714423,0.07319607,68310.0,68301.0,0.07342454]
[1771672716480,0.31157598,68315.0,68301.0,0.00022]
[1771672716792,0.07320054,68306.0,68301.0,0.00022]
[1771672717204,0.07320118,68305.0,68301.0,0.00022]
[1771672717590,0.02485376,68309.0,68300.0,0.00016]
[1771672717804,0.02485376,68309.0,68297.0,0.17584]
[1771672717805,0.07320506,68302.0,68297.0,0.17584]
[1771672718131,0.01926642,68309.0,68297.0,0.12584]
[1771672718132,0.02262439,68301.0,68297.0,0.12584]
[1771672718246,0.07320674,68300.0,68297.0,0.12584]
[1771672718696,0.09583069,68301.0,68297.0,0.12584]
[1771672718896,0.09583003,68301.0,68297.0,0.12584]
[1771672719076,0.02262439,68301.0,68297.0,0.12584]
[1771672719283,0.09582981,68301.0,68297.0,0.12584]
[1771672719451,0.02262439,68301.0,68297.0,0.12584]
[1771672720293,0.07320381,68303.0,68297.0,0.12584]
[1771672720502,0.29280745,68305.0,68297.0,0.12584]
[1771672720737,0.02262439,68304.0,68297.0,0.12584]
[1771672720852,8.45e-05,68306.0,68297.0,0.12584]
[1771672721063,0.07320226,68304.0,68297.0,0.12584]
[1771672723335,0.07320327,68303.0,68297.0,0.12584]
[1771672724850,8.45e-05,68306.0,68297.0,0.12584]
[1771672725202,8.45e-05,68306.0,68298.0,0.07320853]
[1771672725396,0.07319825,68308.0,68301.0,0.01864709]
[1771672725754,0.00016,68310.0,68298.0,0.02386119]
[1771672725963,0.0731945,68312.0,68305.0,0.01864709]
[1771672726103,0.0731945,68312.0,68305.0,0.04250828]
[1771672726507,0.0002,68306.0,68305.0,0.04250828]
[1771672727555,0.0002,68306.0,68305.0,0.01864709]
[1771672730838,0.07339074,68315.0,68305.0,0.01864709]
[1771672731039,0.07319361,68312.0,68305.0,0.01864709]
[1771672732206,0.07319361,68312.0,68305.0,0.0153353]
[1771672733007,0.07319334,68313.0,68305.0,0.08853626]
[1771672733208,0.0731939,68312.0,68305.0,0.0153353]
[1771672734095,0.0733939,68312.0,68305.0,0.0153353]
[1771672734839,0.0002,68312.0,68305.0,0.08853637]
[1771672735040,0.0002,68312.0,68306.0,0.07320001]
[1771672735399,0.0002,68312.0,68306.0,0.0918471]
[1771672735721,0.0733909,68315.0,68308.0,0.01864709]
[1771672735888,0.07319194,68314.0,68308.0,0.01864709]
[1771672736712,0.00011673,68319.0,68309.0,0.02386119]
[1771672737075,0.0731887,68317.0,68309.0,0.09705765]
[1771672737641,0.07318937,68316.0,68309.0,0.09705765]
[1771672738227,0.07318937,68316.0,68309.0,0.02386119]
[1771672738409,0.07318937,68316.0,68308.0,0.07319782]
[1771672738724,0.0731915,68314.0,68306.0,0.07319966]
[1771672740023,0.0731915,68314.0,68307.0,0.07319884]
[1771672740992,0.0733915,68314.0,68307.0,0.07319884]
[1771672741425,0.0002,68314.0,68307.0,0.07319884]
[1771672744248,0.0002,68314.0,68308.0,0.07319774]
[1771672744950,0.0002,68314.0,68306.0,0.07319966]
[1771672746982,0.0002,68314.0,68307.0,0.07319885]
[1771672752393,0.07319865,68308.0,68300.0,0.00016]
[1771672752591,0.0191098,68310.0,68302.0,0.07320382]
[1771672753202,0.0191098,68310.0,68301.0,0.07320459]
[1771672753203,0.09230592,68310.0,68301.0,0.07320459]
[1771672753645,0.0002,68314.0,68300.0,0.1649807]
[1771672753824,0.07319253,68313.0,68304.0,0.07320112]
[1771672754030,0.0002,68314.0,68305.0,0.02450922]
[1771672754231,0.0002,68314.0,68306.0,0.07319907]
[1771672754426,0.07339225,68314.0,68307.0,0.00022]
[1771672754647,0.07319255,68313.0,68307.0,0.00022]
[1771672757977,0.07339151,68314.0,68307.0,0.00022]
[1771672758791,0.07339237,68314.0,68307.0,0.00022]
[1771672758957,0.07339149,68314.0,68307.0,0.00022]
[1771672759753,0.0002,68314.0,68307.0,0.00022]
[1771672759959,0.07318883,68317.0,68309.0,0.07319581]
[1771672760377,0.07318883,68317.0,68308.0,0.09770708]
[1771672760696,0.00011673,68319.0,68310.0,0.07319466]
[1771672760880,0.0731872,68318.0,68310.0,0.07319466]
[1771672761417,0.00011673,68319.0,68309.0,0.02450922]
[1771672761790,0.0733032,68319.0,68310.0,0.07319572]
[1771672762317,0.00011673,68319.0,68311.0,0.07319458]
[1771672762524,0.07330294,68319.0,68311.0,0.07319458]
[1771672762715,0.07330294,68319.0,68308.0,0.02450922]
[1771672762716,0.00011673,68319.0,68308.0,0.02450922]
[1771672762890,0.00011673,68319.0,68314.0,0.07319054]
[1771672763075,0.07330286,68319.0,68307.0,0.00022]
[1771672763280,0.00011673,68319.0,68311.0,0.07319368]
[1771672763491,0.07318805,68318.0,68310.0,0.07319557]
[1771672763913,0.0926129,68319.0,68311.0,0.07319443]
[1771672764074,0.01942653,68319.0,68312.0,0.07319292]
[1771672764279,0.01942653,68319.0,68312.0,0.07319284]
[1771672764907,0.01942653,68319.0,68312.0,0.07319358]
[1771672765079,0.01942653,68319.0,68313.0,0.07319228]
[1771672765479,0.01942653,68319.0,68315.0,0.07319032]
[1771672765729,0.01942653,68319.0,68314.0,0.07319118]
[1771672767068,0.01942653,68319.0,68315.0,0.07319034]
[1771672769761,0.0001801,68326.0,68313.0,0.02450922]
[1771672769961,0.0731805,68325.0,68315.0,0.07319028]
[1771672770156,0.0922903,68325.0,68315.0,0.07319028]
[1771672770566,0.09229146,68324.0,68315.0,0.07319028]
[1771672771190,0.0002,68319.0,68315.0,0.07319028]
[1771672771718,0.0002,68319.0,68310.0,0.00038]
[1771672772011,0.0193098,68319.0,68310.0,0.00049673]
[1771672772163,0.0193098,68319.0,68311.0,0.07319465]
[1771672772558,0.0193098,68319.0,68310.0,0.00049673]
[1771672772970,0.0193098,68319.0,68312.0,0.0731926]
[1771672773167,0.0193098,68319.0,68313.0,0.07319251]
[1771672773469,0.0193098,68319.0,68314.0,0.07319142]
[1771672774489,0.07318091,68324.0,68316.0,0.07318864]
[1771672774687,0.09229071,68324.0,68316.0,0.07318864]
[1771672775221,0.07318193,68323.0,68316.0,0.07318864]
[1771672775601,0.07318193,68323.0,68314.0,0.07319104]
[1771672776105,0.07318193,68323.0,68315.0,0.07319035]
[1771672777260,0.07318108,68324.0,68316.0,0.07318916]
[1771672778191,0.07318197,68323.0,68315.0,0.07319006]
[1771672779849,0.0002,68324.0,68311.0,0.07319465]
[1771672780150,0.0002,68324.0,68310.0,0.00049673]
[1771672780151,0.0003362,68323.0,68318.0,0.09773677]
[1771672780291,0.0003362,68323.0,68318.0,0.01465311]
[1771672780500,0.0002,68324.0,68319.0,0.09525531]
[1771672780693,0.0002,68324.0,68319.0,0.0707052]
[1771672782550,0.0002,68324.0,68313.0,0.07319146]
[1771672782852,0.09170449,68324.0,68316.0,0.07318896]
[1771672783684,0.0183236,68322.0,68315.0,0.07319014]
[1771672783857,0.07318438,68321.0,68313.0,0.07319237]
[1771672784031,0.07318579,68320.0,68312.0,0.07319306]
[1771672784233,0.09150798,68321.0,68313.0,0.07319219]
[1771672784620,0.09741651,68323.0,68316.0,0.07318916]
[1771672784837,0.09741651,68323.0,68315.0,0.07319012]
[1771672785396,0.0183236,68320.0,68312.0,0.07319283]
[1771672785613,0.09150942,68320.0,68311.0,0.07319399]
[1771672785810,0.0183236,68319.0,68312.0,0.07319335]
[1771672786099,0.0183236,68319.0,68315.0,0.00022]
[1771672789539,0.09151162,68318.0,68310.0,0.07369167]
[1771672789697,0.0183236,68317.0,68310.0,0.07369167]
[1771672789904,0.0183236,68317.0,68312.0,0.07319315]
[1771672790285,0.07318394,68321.0,68313.0,0.07319223]
[1771672791060,0.09150754,68321.0,68313.0,0.07319223]
[1771672791280,0.07318547,68320.0,68312.0,0.07319157]
[1771672791565,0.09150907,68320.0,68312.0,0.07319157]
[1771672791765,0.07318611,68319.0,68311.0,0.07319432]
[1771672791998,0.0183236,68317.0,68310.0,0.00049673]
[1771672792135,0.0183236,68314.0,68307.0,0.07341789]
[1771672792339,0.01840904,68314.0,68307.0,0.00022]
[1771672792537,0.01840904,68314.0,68307.0,0.07341687]
[1771672792741,8.544e-05,68314.0,68307.0,0.07341687]
[1771672792946,8.544e-05,68314.0,68310.0,0.07319534]
[1771672793867,8.544e-05,68314.0,68304.0,0.02455011]
[1771672793868,8.544e-05,68314.0,68300.0,0.00038]
[1771672794071,0.07320615,68301.0,68291.0,0.07343536]
[1771672794343,0.02423442,68303.0,68291.0,0.00022]
[1771672794563,0.09743848,68303.0,68295.0,0.07321149]
[1771672794796,0.09743848,68303.0,68294.0,0.07343258]
[1771672795242,0.07320475,68302.0,68294.0,0.07343258]
[1771672796033,0.07320475,68302.0,68294.0,0.09143752]
[1771672797697,0.07320584,68301.0,68294.0,0.01822494]
[1771672797901,0.07320475,68302.0,68294.0,0.01822494]
[1771672799518,0.07320265,68304.0,68294.0,0.01822494]
[1771672799519,0.07320265,68304.0,68297.0,0.01800494]
[1771672799907,0.07320214,68305.0,68297.0,0.07320963]
[1771672800104,0.07320108,68305.0,68298.0,0.01800494]
[1771672800510,0.07319786,68308.0,68294.0,0.0734308]
[1771672800852,0.07320185,68305.0,68297.0,0.01800494]
[1771672800979,0.07320185,68305.0,68297.0,0.0912144]
[1771672801179,0.07320013,68306.0,68298.0,0.01800494]
[1771672801720,0.07320013,68306.0,68298.0,0.09121271]
[1771672801962,0.07320101,68307.0,68298.0,0.01800494]
[1771672802305,0.07320087,68306.0,68299.0,0.01800494]
[1771672802506,0.07320101,68307.0,68299.0,0.08666763]
[1771672802507,0.07319894,68307.0,68299.0,0.08666763]
[1771672802739,0.07319894,68307.0,68300.0,0.01800494]
[1771672803077,0.07320028,68306.0,68300.0,0.01800494]
[1771672803392,0.0732012,68305.0,68294.0,0.07343225]
[1771672803627,0.02423442,68304.0,68294.0,0.07343225]
[1771672803830,0.07320351,68303.0,68295.0,0.07321106]
[1771672804086,0.07320881,68298.0,68293.0,0.00022]